{"text_format":"1","workbook":"xlsx","n_sheets":5,"sheets":["CARD 7 RIO PET","ITINERARIO RIO","ITINERÁRIO PET","Etiquetas","EtiquetaRascunho"],"not_rendered":{"charts":0,"images":0,"macros":1,"external_links":1,"defined_names":5,"comments":0,"pivot_tables":0},"unopened":[],"bounds":{"document_bytes":16777216,"sheet_cells":100000,"rows_first":2000,"rows_last":500,"rows_between":2000,"halvings":0,"cell_chars":16384,"cell_head_chars":4096},"cells_cut":0,"cells_raw":0,"read":"whole","date_system":"1900"}

{"sheet":"CARD 7 RIO PET","index":0,"n_rows":40,"n_cols":87,"rows_kept":40,"cut":false,"hidden":false,"merged":[[6,72,7,72],[6,74,7,74],[6,75,7,75],[7,1,7,2],[37,1,37,2],[38,1,38,27],[0,1,1,2],[0,71,1,71],[4,1,4,2],[6,1,6,2],[5,1,5,2]]}
[null,null,null,null,null,null,null,null,null,null,null,null,null,null,null,null,null,null,null,null,null,null,null,null,null,null,null,null,null,null,null,null,null,null,null,null,null,null,null,null,null,null,null,null,null,null,null,null,null,null,null,null,null,null,null,null,null,null,null,null,null,null,null,null,null,null,null,null,null,null,null,"TOTAL DE PEDIDOS"]
[null,null,null,null,null,"ELISABETH ROCHA MIRANDA","Noemia","Nome teste","teste","TIA CLARINHA","ef","Nome teste","Nome teste 2","ISABELA SA FREIRE","Fulano","MARA LUISA VANIA","Citrano","CLAUDIA GUERRA","Beltrano","RAQUEL CARIUS",null,"PATTYMELT",null,"VERA ALTO DA SERRA",null,"RENNE SVACINA",null,"JOSE CARLOS E LEILA",null,"VALÉRIA TONELERO",null,"GRAÇA PQ SAO VICENTE",null,"BETH ROMULO",null,"GLORINHA",null,"ALICE ARARAS",null,"ANA LUCIA DUDA",null,"IVAN CLIENTE",null,"MARGARIDA",null,"VERA LEME",null,"MARIANA LIMA INGELHEIM",null,null,null,null,null,null,null,null,null,null,null,null,null,null,null,null,"Citrano","Fulano de Tal",null,"ELISABETH ROCHA MIRANDA"]
[null,"TOTAL A PAGAR",{"$f":"C38","v":0},0,{"$error":"#REF!"},540,0,321,0,225,0,305,4,265,0,215,0,403,0,160,0,165,0,268,0,125,0,405,0,175,0,175,0,273,0,165,0,155,0,335,0,303,0,193,0,255,0,125,0,0,0,0,0,0,0,0,0,0,0,0,0,0,0,0,100,250]
[null,"ID CLIENTE",null,null,1.3333333333333699,"1","2","3",4,5,6,7,8,9,10,11,12,13,14,15,16,17,18,19,20,21,22,23,24,25,26,27,28,29,30,31,32,33,34,35,36,37,38,39,40,41,42,43,44,45,46,47,48,49,50,51,52,53,54,55,56,57,58,59,60,61,62,63]
[66,"STATUS PAGAMENTO",null,null,null,null,"ok",null,"ok","-","ok",null,null,null,"ok",null,null,null,"ok",null,null,null,"ok",null,"ok",null,null,null,null,null,null,null,null,null,null,"falta 40",null,null,null,"cartao"]
[null,"Bairro",null,null,null,"Valença","Bairro teste","Angra dos Reis","Aperibé","Araruama","Areal","Armação dos Búzios","Arraial do Cabo","Barra do Piraí","Barra Mansa","Belford Roxo","Bom Jardim","Bom Jesus do Itabapoana","Cabo Frio","cachoeiras de macacu",null,"Cambuci","Carapebus","Comendador Levy Gasparian","Campos dos Goytacazes","Cantagalo","Cardoso Moreira","Carmo","Casimiro de Abreu","Conceição de Macabu","Cordeiro","Duas Barras","Duque de Caxias","Engenheiro Paulo de Frontin","Guapimirim","Iguaba Grande","Itaboraí","Itaguaí","Italva","Itaocara","Itaperuna","Itatiaia","Japeri","Laje do Muriaé","Macaé","Macuco","Magé","Mangaratiba","Maricá",null,null,null,null,null,null,null,null,null,null,null,null,null,null,null,"Bairro X","Bairro Y",null,"Valença",null,null,null,"Piraí","Porciúncula","Porto Real","Quatis","Queimados","Quissamã","Resende","Rio Bonito","Rio Claro","Rio das Flores","Rio das Ostras","Rio de Janeiro","Santa Maria Madalena","Santo Antônio de Pádua","São Francisco de Itabapoana","São Fidélis"]
[null,"ENDEREÇO",null,null,null,"Rua Gilberto Amado 370 apto 101 cep 22620-062 Jardim Oceânico Barra da Tijuca","Rua teste","Av. Lineu de Paula Machado, # 1006/ apto 901/bloco 1","teste","Rua General Garzon 100/604","fefe","BUSCA NO LOCAL","Endereço teste"," Rua Professor Stroeller 320, Quarteirão Brasileiro","Endereço X","Av. Jornalista Tim Lopes 255 bloco 8 apto 312","Endereço Y","AV HENRIQUE DODSWORTH 64/206 BL1","Endereço Z","Praça Rui Barbosa, 250 apto:402",null,"Rua das dracenas 8, vale dos esquilos",null,"Rua Lopes Trovão, 320 - Alto da Serra. ",null,"Rua da Imperatriz 65/602",null,"Rua Comandante Marcolino de Souza 443 apt 104 Bloco 3\nCondomínio Albergo Dei Pini\nFica ao lado do Hotel Albergo Del Leone",null,"Rua Tonelero 130/503 ",null,"RUA PAULA BUARQUE 1100",null,"Avenida Borges de Medeiros, 137/401",null,"Rua Zoila  de Abreu Teixeira  ( primeira rua depois do Cond Nova Ipanema ) edifício Kossen bloco 2 J  cobertura 303",null,"Condomínio Vale das Araras",null,"ok",null,"Rua Zaco Paraná, 10 cobertura 301 Jd Oceanico",null,"Rua Casuarina 81 apto 202",null,"Gustavo Sampaio 441, 302",null,"Rua Carlota Corrêa Lima, 1500 lote 01",null,null,null,null,null,null,null,null,null,null,null,null,null,null,null,null,"Rua x, Número x","Rua Y, Número y",null,"Rua Gilberto Amado 370 apto 101 cep 22620-062 Jardim Oceânico Barra da Tijuca",null,null,null,null,"TOTAL DE PEDIDOS",null,"ESTOQUE","SALDO",null,null,null,null,null,null,null,null,null,"/"]
[null,"TELEFONE",null,null,null,null,null,null,null,null,null,"$ na entrega",null,null,null,null,null,"CORTE CANTAGALO",null,"$ na portaria",null,"f",null,null,null,null,null,null,null,null,null,null,null,null,null,null,null,"Estrada das Perobas 2000, Casa 18 - Araras",null,null,null,null,null,null,null,null,null,"Condominio Bosque do Ingelhein",null,null,null,null,null,null,null,null,null,null,null,null,null,null,null,null,null,null,null,null,null,null,null,null,null,null,null,null,null,null,null,null,null,{"$f":"0.3*20","v":6}]
[null,null,null,{"$f":"#REF!*$C9","v":{"$error":"#REF!"}},{"$f":"F9*$C9","v":0},null,{"$f":"H9*$C9","v":0},null,{"$f":"J9*$C9","v":0},null,{"$f":"L9*$C9","v":0},null,{"$f":"N9*$C9","v":0},null,{"$f":"P9*$C9","v":0},null,{"$f":"R9*$C9","v":0},null,{"$f":"T9*$C9","v":0},null,{"$f":"V9*$C9","v":0},null,{"$f":"X9*$C9","v":0},null,{"$f":"Z9*$C9","v":0},null,{"$f":"AB9*$C9","v":0},null,{"$f":"AD9*$C9","v":0},null,{"$f":"AF9*$C9","v":0},null,{"$f":"AH9*$C9","v":0},null,{"$f":"AJ9*$C9","v":0},null,{"$f":"AL9*$C9","v":0},null,{"$f":"AN9*$C9","v":0},null,{"$f":"AP9*$C9","v":0},null,{"$f":"AR9*$C9","v":0},null,{"$f":"AT9*$C9","v":0},null,{"$f":"AV9*$C9","v":0},null,{"$f":"AX9*$C9","v":0},null,{"$f":"AZ9*$C9","v":0},null,{"$f":"BB9*$C9","v":0},null,{"$f":"BD9*$C9","v":0},null,{"$f":"BF9*$C9","v":0},null,{"$f":"BH9*$C9","v":0},null,{"$f":"BJ9*$C9","v":0},null,{"$f":"BL9*$C9","v":0},null,null,null,null,null,null,null,null,null,{"$f":"SUM(F9+H9+J9+L9+N9+P9+R9+T9+V9+X9+Z9+AB9+AD9+AF9+AH9+AJ9+AL9+AN9+AP9+AR9+AT9+AV9+AX9+AZ9+BB9+BD9+BF9+BH9+BJ9+BL9)","v":0},{"$f":"B9","v":0},null,{"$f":"BW9-BU9","v":0}]
[null,"Ratatouille",50,{"$error":"#REF!"},0,null,0,null,0,null,50,1,0,null,50,1,0,null,0,null,0,null,0,null,0,null,0,null,0,null,0,null,0,null,0,null,0,null,0,null,0,null,0,null,0,null,0,null,0,null,0,null,0,null,0,null,0,null,0,null,0,null,0,null,1,null,null,null,null,null,null,null,2,"Ratatouille",null,-2]
[null,"Batatas Coradas",null,{"$error":"#REF!"},0,null,0,null,0,null,0,null,0,null,0,null,0,null,0,null,0,null,0,null,0,null,0,null,0,null,0,null,0,null,0,null,0,null,0,null,0,null,0,null,0,null,0,null,0,null,0,null,0,null,0,null,0,null,0,null,0,null,0,null,null,null,null,null,null,null,null,null,0,"Batatas Coradas",null,0,null,null,null,null,null,null,null,null,null,"-+9-+*95"]
[null,"Pate de Figado 250g",30,{"$error":"#REF!"},0,null,0,null,0,null,0,null,0,null,0,null,0,null,0,null,0,null,0,null,0,null,0,null,0,null,0,null,0,null,0,null,0,null,30,1,0,null,0,null,30,1,0,null,0,null,0,null,0,null,0,null,0,null,0,null,0,null,0,null,null,null,null,null,null,null,null,null,2,"Pate de Figado 250g",null,-2]
[null,"Bolinho de Bacalhau",50,{"$error":"#REF!"},0,null,null,null,0,null,0,null,0,null,0,null,50,1,0,null,0,null,0,null,0,null,0,null,0,null,0,null,0,null,0,null,0,null,0,null,0,null,0,null,0,null,0,null,0,null,0,null,0,null,0,null,0,null,0,null,0,null,0,null,null,null,null,null,null,null,null,null,1,"Bolinho de Bacalhau",null,-1,null,null,null,null,null,null,null,null,null,"*/87\\4\\?\"+"]
[null,"Croquete de Joelho",48,{"$error":"#REF!"},0,null,null,null,0,null,0,null,0,null,0,null,0,null,0,null,0,null,0,null,0,null,0,null,0,null,0,null,48,1,0,null,0,null,0,null,48,1,0,null,0,null,0,null,0,null,0,null,0,null,0,null,0,null,0,null,0,null,0,null,null,null,null,null,null,null,null,null,2,"Croquete de Joelho",null,-2]
[null,"Croquete de Cordeiro",52,{"$error":"#REF!"},0,null,null,null,0,null,0,null,0,null,0,null,0,null,0,null,0,null,0,null,52,1,0,null,0,null,0,null,0,null,0,null,0,null,0,null,0,null,0,null,0,null,0,null,0,null,0,null,0,null,0,null,0,null,0,null,0,null,0,null,null,null,null,null,null,null,null,null,1,"Croquete de Cordeiro",null,-1]
[null,"Croquete de Pato",58,null,0,null,null,null,0,null,0,null,0,null,0,null,0,null,0,null,0,null,0,null,58,1,0,null,0,null,0,null,0,null,0,null,0,null,0,null,0,null,58,1,0,null,0,null,0,null,0,null,0,null,0,null,0,null,0,null,0,null,0,null,null,null,null,null,null,null,null,null,2,"Croquete de Pato",null,-2]
[null,"Berinjela Parmigiana",100,null,0,null,null,null,0,null,0,null,0,null,0,null,0,null,0,null,0,null,0,null,0,null,0,null,0,null,0,null,0,null,0,null,0,null,0,null,0,null,0,null,0,null,0,null,0,null,0,null,0,null,0,null,0,null,0,null,0,null,0,null,null,null,null,null,null,null,null,null,0,"Berinjela Parmigiana",null,0]
[null,"Frango Parmigiana",100,{"$f":"#REF!*$C18","v":{"$error":"#REF!"}},0,null,null,null,0,null,0,null,100,1,0,null,0,null,0,null,0,null,0,null,0,null,0,null,0,null,0,null,0,null,0,null,0,null,0,null,0,null,0,null,0,null,0,null,0,null,0,null,0,null,0,null,0,null,0,null,0,null,0,null,null,null,null,null,null,null,null,null,1,"Frango Parmigiana",null,-1]
[null,"Lasagna Bologneses",110,{"$error":"#REF!"},0,null,null,null,0,null,0,null,110,1,0,null,0,null,0,null,0,null,0,null,0,null,0,null,0,null,0,null,0,null,0,null,0,null,0,null,110,1,0,null,0,null,0,null,0,null,0,null,0,null,0,null,0,null,0,null,0,null,0,null,null,null,null,null,null,null,null,null,2,"Lasagna Bologneses",null,-2]
[null,"Gnocchi de Batata",65,{"$error":"#REF!"},0,null,null,6,0,null,0,null,0,null,0,null,0,null,0,null,0,null,0,null,0,null,0,null,0,null,0,null,0,null,0,null,0,null,0,null,0,null,0,null,0,null,0,null,0,null,0,null,0,null,0,null,0,null,0,null,0,null,0,null,2,null,null,null,null,null,null,null,6,"Gnocchi de Batata",null,-6]
[null,"Rosbife Mostarda",140,{"$error":"#REF!"},0,null,null,null,0,null,0,null,0,null,140,1,0,null,0,null,0,null,0,null,0,null,0,null,0,null,0,null,0,null,0,null,0,null,0,null,0,null,0,null,0,null,0,null,0,null,0,null,0,null,0,null,0,null,0,null,0,null,0,null,null,null,null,null,null,null,null,null,1,"Rosbife Mostarda",null,-1]
[null,"Pesto",65,{"$error":"#REF!"},0,null,null,null,0,null,0,null,0,null,0,null,0,null,0,null,0,null,65,1,0,null,0,null,0,null,0,null,0,null,0,null,0,null,0,null,0,null,0,null,0,null,0,null,0,null,0,null,0,null,0,null,0,null,0,null,0,null,0,null,null,null,null,null,null,null,null,null,1,"Pesto",null,-1]
[null,"Pomodoro",45,{"$error":"#REF!"},225,5,null,null,{"$f":"J23*$C23","v":0},null,45,1,0,null,0,null,0,null,0,null,0,null,0,null,0,null,0,null,0,null,0,null,0,null,0,null,0,null,0,null,0,null,0,null,0,null,0,null,0,null,0,null,0,null,0,null,0,null,0,null,0,null,0,null,null,null,null,null,null,null,null,null,6,"Pomodoro",null,-6]
[null,"Ragu Calabrese",55,{"$error":"#REF!"},0,null,null,null,0,null,0,null,0,null,0,null,0,null,0,null,0,null,0,null,0,null,0,null,0,null,0,null,0,null,0,null,0,null,0,null,0,null,0,null,0,null,0,null,0,null,0,null,0,null,0,null,0,null,0,null,0,null,0,null,null,null,null,6,null,null,null,null,0,"Ragu Calabrese",null,0]
[null,"Funghi",70,{"$error":"#REF!"},0,null,null,null,0,null,0,null,0,null,0,null,{"$f":"R25*$C25","v":70},1,0,null,0,null,0,null,0,null,0,null,0,null,0,null,0,null,0,null,0,null,0,null,0,null,0,null,0,null,0,null,0,null,0,null,0,null,0,null,0,null,0,null,0,null,0,null,null,null,null,null,null,null,null,null,1,"Funghi",null,-1]
[null,"Casquinha de Caranguejo",90,{"$error":"#REF!"},0,null,null,null,90,1,0,null,0,null,0,null,0,null,0,null,0,null,0,null,0,null,90,1,0,null,0,null,0,null,0,null,90,1,90,1,0,null,0,null,90,1,0,null,0,null,0,null,0,null,0,null,0,null,0,null,0,null,0,null,null,null,null,null,null,null,null,null,5,"Casquinha de Caranguejo",null,-5,null,null,null,null,null,null,"TOTAL"]
[null,"Caldo de Sururu",70,{"$error":"#REF!"},70,1,null,null,0,null,0,null,0,null,0,null,0,null,0,null,0,null,0,null,0,null,70,1,70,1,0,null,0,null,0,null,0,null,70,1,0,null,0,null,0,null,0,null,0,null,0,null,0,null,0,null,0,null,0,null,0,null,0,null,null,null,null,null,null,null,null,null,4,"Caldo de Sururu",null,-4,null,null,null,null,null,null,{"$f":"CD27*CC27+CD27*CB27+CD27*CA27","v":0}]
[null,"Caldo de Piranha ",80,{"$error":"#REF!"},80,1,null,null,0,null,0,null,0,null,0,null,0,null,0,null,0,null,0,null,0,null,80,1,80,1,0,null,0,null,0,null,0,null,80,1,0,null,0,null,0,null,0,null,0,null,0,null,0,null,0,null,0,null,0,null,0,null,0,null,3,null,null,null,null,null,null,null,4,"Caldo de Piranha ",null,-4]
[null,"CrOquete de Vatapa",40,{"$error":"#REF!"},0,null,null,null,0,null,0,null,0,null,0,null,0,null,0,null,0,null,0,null,0,null,0,null,0,null,40,1,0,null,0,null,40,1,40,1,0,null,0,null,0,null,0,null,0,null,0,null,0,null,0,null,0,null,0,null,0,null,0,null,null,null,null,null,null,null,null,null,3,"CrOquete de Vatapa",null,-3]
[null,"Moqueca de Namorado ",140,{"$error":"#REF!"},140,1,null,null,0,null,0,null,0,null,0,null,0,null,140,1,140,1,140,1,0,null,140,1,0,null,0,null,0,null,140,1,0,null,0,null,0,null,0,null,0,null,0,null,0,null,0,null,0,null,0,null,0,null,0,null,0,null,0,null,null,null,null,null,null,null,null,null,6,"Moqueca de Namorado ",null,-6]
[null,"Carne Assada com  Gnocch",110,{"$error":"#REF!"},0,null,0,null,110,1,110,1,0,null,0,null,{"$f":"R31*$C31","v":220},2,0,null,0,null,0,null,0,null,0,null,0,null,110,1,0,null,0,null,0,null,0,null,0,null,110,1,110,1,0,null,0,null,0,null,0,null,0,null,0,null,0,null,0,null,0,null,null,null,null,null,null,null,null,null,7,"Carne Assada com  Gnocch",null,-7]
[null,"Carne Seca com Abobora",120,{"$error":"#REF!"},0,null,120,1,0,null,0,null,0,null,0,null,0,null,0,null,0,null,0,null,0,null,0,null,0,null,0,null,0,null,0,null,0,null,0,null,120,1,0,null,0,null,0,null,0,null,0,null,0,null,0,null,0,null,0,null,0,null,0,null,null,null,null,null,null,null,null,null,2,"Carne Seca com Abobora",null,-2]
[null,"Galinhada",100,{"$error":"#REF!"},0,null,100,1,0,null,100,1,0,null,0,null,0,null,0,null,0,null,0,null,0,null,0,null,0,null,0,null,200,2,0,null,0,null,0,null,0,null,0,null,0,null,100,1,0,null,0,null,0,null,0,null,0,null,0,null,0,null,0,null,null,null,null,null,null,null,null,null,5,"Galinhada",null,-5]
[null,"Doce de Abobora",30,{"$error":"#REF!"},0,null,0,null,0,null,0,null,30,1,0,null,0,null,0,null,0,null,0,null,0,null,0,null,0,null,0,null,0,null,0,null,0,null,0,null,0,null,0,null,0,null,0,null,0,null,0,null,0,null,0,null,0,null,0,null,0,null,0,null,null,null,null,null,null,null,null,null,1,"Doce de Abobora",null,-1]
[null,"Cocada",38,{"$error":"#REF!"},0,null,76,2,0,null,0,null,0,null,0,null,38,1,0,null,0,null,38,1,0,null,0,null,0,null,0,null,0,null,0,null,0,null,0,null,0,null,0,null,0,null,0,null,0,null,0,null,0,null,0,null,0,null,0,null,0,null,0,null,1,null,null,null,null,null,null,null,4,"Cocada",null,-4]
[null,null,null,{"$error":"#REF!"},0,null,0,null,0,null,0,null,0,null,0,null,0,null,0,null,0,null,0,null,0,null,0,null,0,null,0,null,0,null,0,null,0,null,0,null,0,null,0,null,0,null,0,null,0,null,0,null,0,null,0,null,0,null,0,null,0,null,0,null,null,null,null,null,null,null,null,null,0,0,null,0]
[null,"TAXA DE ENTREGA",25,{"$error":"#REF!"},25,1,25,1,25,1,0,0,25,1,25,1,25,1,20,0.8,25,1,25,1,15,0.6,25,1,25,1,25,1,25,1,25,1,25,1,25,1,25,1,25,1,25,1,25,1,0,0,0,0,0,0,0,0,0,0,0,0,0,0,0,0,null,null,null,null,null,null,null,null,20.399999999999999,"TAXA DE ENTREGA",null,-20.399999999999999]
[null,"TOTAL VALOR",null,null,{"$f":"SUM(#REF!)","v":{"$error":"#REF!"}},{"$f":"SUM(E9:E37)","v":540},null,{"$f":"SUM(G9:G37)","v":321},null,{"$f":"SUM(I9:I37)","v":225},null,{"$f":"SUM(K9:K37)","v":305},4,265,null,{"$f":"SUM(O9:O37)","v":215},null,{"$f":"SUM(Q9:Q37)","v":403},null,{"$f":"SUM(S9:S37)","v":160},null,{"$f":"SUM(U9:U37)","v":165},null,{"$f":"SUM(W9:W37)","v":268},null,{"$f":"SUM(Y9:Y37)","v":125},null,{"$f":"SUM(AA9:AA37)","v":405},null,{"$f":"SUM(AC9:AC37)","v":175},null,{"$f":"SUM(AE9:AE37)","v":175},null,{"$f":"SUM(AG9:AG37)","v":273},null,{"$f":"SUM(AI9:AI37)","v":165},null,{"$f":"SUM(AK9:AK37)","v":155},null,{"$f":"SUM(AM9:AM37)","v":335},null,{"$f":"SUM(AO9:AO37)","v":303},null,{"$f":"SUM(AQ9:AQ37)","v":193},null,{"$f":"SUM(AS9:AS37)","v":255},null,{"$f":"SUM(AU9:AU37)","v":125},null,{"$f":"SUM(AW9:AW37)","v":0},null,{"$f":"SUM(AY9:AY37)","v":0},null,{"$f":"SUM(BA9:BA37)","v":0},null,{"$f":"SUM(BC9:BC37)","v":0},null,{"$f":"SUM(BE9:BE37)","v":0},null,{"$f":"SUM(BG9:BG37)","v":0},null,{"$f":"SUM(BI9:BI37)","v":0},null,{"$f":"SUM(BK9:BK37)","v":0}]
[null,"SUBTOTAL",null,null,null,null,null,null,null,null,null,null,null,null,null,null,null,null,null,null,null,null,null,null,null,null,null,null,null,{"$f":"SUM(F38:BJ38)","v":5555},null,null,null,null,null,null,null,null,null,null,null,null,null,null,null,null,null,null,null,null,null,null,null,null,null,null,null,null,null,null,null,null,null,null,null,null,null,null,null,null,null,{"$f":"SUM(BT9:BT37)","v":0}]
[null,null,null,null,null,{"$f":"TotalPedido(E21)","v":0}]

{"sheet":"ITINERARIO RIO","index":1,"n_rows":44,"n_cols":5,"rows_kept":44,"cut":false,"hidden":false,"merged":[[38,0,38,1],[0,0,0,1],[3,0,3,1],[0,3,0,4],[3,3,3,4],[6,0,6,1],[38,3,38,4],[14,0,14,1],[22,0,22,1],[22,3,22,4],[14,3,14,4],[30,0,30,1],[30,3,30,4]]}
["BARRA",null,null,"BARRA"]
[]
["GLORINHA",null,null,"ANA LUCIA"]
["Rua Zoila de Abreu Teixeira ( primeira rua depois do Cond Nova Ipanema ) edifício Kossen bloco 2 J cobertura 303",null,null,"Rua FAla Amendoeira 348 ap 1901 Condominio Novo Leblon Ed Di Duccio"]
["Moqueca de Namorado",1,null,"Pate de Figado 250g",1]
[null,null,null,"Casquinha de Caranguejo",1]
["BARRA",null,null,"Caldo de Sururu",1]
[null,null,null,"Caldo de Piranha",1]
["IVAN E JANE",null,null,"CrOquete de Vatapa",1]
["Rua Zaco Paraná, 10 cob 301 Jd Oceanico"]
["Croquete de Joelho",1]
["Lasagna Bologneses",1]
["Carne Seca com Abobora",1]
[]
["BARRA",null,null,"BARRA"]
[]
["ELISABETH",null,null,"MARA LUISA"]
["Rua Gilberto Amado 370 apto 101 ",null,null,"Av. Jornalista Tim Lopes 255 bl 8 ap 312"]
["Caldo de Sururu",1,null,"Ratatouille",1]
["Caldo de Piranha",1,null,"Rosbife Mostarda",1]
["Moqueca de Namorado",1]
[]
["JD BOTANICO",null,null,"JD BOTANICO"]
[]
["NOEMIA",null,null,"TIA CLARINHA"]
["Av. Lineu de Paula Machado, 1006/ 901 bl1",null,null,"Rua General Garzon 100/604"]
["Carne Seca com Abobora",1,null,"Casquinha de Caranguejo",1]
["Galinhada",1,null,"Carne Assada com Gnocchi",1]
["Cocada",2]
[]
["CORTE CANTAGALO ",null,null,"COPACABANA"]
[]
["CLAUDIA GUERRA",null,null,"VALERIA"]
["AV HENRIQUE DODSWORTH 64/206 BL1",null,null,"Rua Tonelero 130/503 "]
["Bolinho de Bacalhau",1,null,"Caldo de Sururu",1]
["Carne Assada com Gnocchi",2,null,"Caldo de Piranha",1]
["Cocada",1]
[]
["LEBLON",null,null,"HUMAITÁ"]
[]
["BETH E ROMULO",null,null,"MARGARIDA"]
["Av Borges de Medeiros, 137/401",null,null,"Rua Casuarina 81 apto 202"]
["Croquete de Joelho",1,null,"Croquete de Pato",1]
["Galinhada",2,null,"Carne Assada com Gnocchi",1]

{"sheet":"ITINERÁRIO PET","index":2,"n_rows":41,"n_cols":5,"rows_kept":41,"cut":false,"hidden":false,"merged":[[35,0,35,1],[29,0,29,1],[26,0,26,1],[0,0,0,1],[10,0,10,1],[0,3,0,4],[10,3,10,4],[18,0,18,1],[18,3,18,4],[26,3,26,4]]}
["BUSCA NO LOCAL",null,null,"CENTRO"]
[]
["D ECILA ",null,null,"RAQUEL "]
[null,null,null,"Praça Rui Barbosa, 250/402"]
["Ratatouille",1,null,"Moqueca de Namorado",1]
["Pomodoro",1,null,"*RECEBER NA PORTARIA 160,00"]
["Carne Assada com Gnocchi",1]
["Galinhada",1]
["RECEBER 305,00 EM $"]
[]
["QUARTEIRÃO BRASILEIRO",null,null,"VALE DOS ESQUILOS"]
[]
["ISABELA",null,null,"PATTY LINDA"]
["Rua Professor Stroeller 320",null,null,"Rua das dracenas 8"]
["Frango Parmigiana",1,null,"Moqueca de Namorado",1]
["Lasagna Bolognese",1]
["Doce de Abobora",1]
[]
["ALTO DA SERRA",null,null,"CENTRO"]
[]
["VERA",null,null,"TIA RENNE"]
["Rua Lopes Trovão, 320 ",null,null,"Rua da Imperatriz 65/602"]
["Pesto",1,null,"Croquete de Cordeiro",1]
["Moqueca de Namorado",1,null,"Croquete de Pato",1]
["Cocada",1]
[]
["ITAIPAVA",null,null,"PQ SÃO VICENTE"]
[]
["JOSÉ CARLOS E LEILA",null,null,"GRAÇA"]
["Rua Comandante Marcolino de Souza 443/104 Bl 3\n",null,null,"RUA PAULA BUARQUE 1100"]
["Casquinha de Caranguejo",1,null,"Croquete de Vatapa",1]
["Caldo de Sururu",1,null,"Carne Assada com Gnocchi",1]
["Caldo de Piranha",1]
["Moqueca de Namorado",1]
[]
["ARARAS"]
[]
["ALICE"]
["Estrada das Perobas 2000, Casa 18 "]
["Casquinha de Caranguejo",1]
["CrOquete de Vatapa",1]

{"sheet":"Etiquetas","index":3,"n_rows":279,"n_cols":2,"rows_kept":279,"cut":false,"hidden":false,"merged":[[192,0,192,1],[200,0,200,1],[232,0,232,1],[242,0,242,1],[274,0,274,1],[3,0,3,1],[13,0,13,1],[27,0,27,1],[37,0,37,1],[69,0,69,1],[119,0,119,1],[151,0,151,1],[160,0,160,1],[77,0,77,1],[109,0,109,1]]}
[]
[]
[]
["VALENÇA"]
["preencher"]
["ELISABETH ROCHA MIRANDA"]
["RUA GILBERTO AMADO 370 APTO 101 CEP 22620-062 JARDIM OCEÂNICO BARRA DA TIJUCA","preencher"]
["POMODORO",5]
["CALDO DE SURURU",1]
["CALDO DE PIRANHA ",1]
["MOQUECA DE NAMORADO ",1]
[]
[]
["BAIRRO TESTE"]
["preencher"]
["NOEMIA"]
["RUA TESTE","preencher"]
["RATATOUILLE",0]
["BATATAS CORADAS",0]
["PATE DE FIGADO 250G",0]
["CARNE ASSADA COM  GNOCCH",0]
["CARNE SECA COM ABOBORA",120]
["GALINHADA",100]
["DOCE DE ABOBORA",0]
["COCADA",76]
[null,0]
[]
["ANGRA DOS REIS"]
["preencher"]
["NOME TESTE"]
["AV. LINEU DE PAULA MACHADO, # 1006/ APTO 901/BLOCO 1","preencher"]
["GNOCCHI DE BATATA",6]
["CARNE SECA COM ABOBORA",1]
["GALINHADA",1]
["COCADA",2]
[]
[]
["APERIBÉ"]
["preencher"]
["TESTE"]
["TESTE","preencher"]
["RATATOUILLE",0]
["BATATAS CORADAS",0]
["PATE DE FIGADO 250G",0]
["BOLINHO DE BACALHAU",0]
["CROQUETE DE JOELHO",0]
["CROQUETE DE CORDEIRO",0]
["CROQUETE DE PATO",0]
["BERINJELA PARMIGIANA",0]
["FRANGO PARMIGIANA",0]
["LASAGNA BOLOGNESES",0]
["GNOCCHI DE BATATA",0]
["ROSBIFE MOSTARDA",0]
["PESTO",0]
["POMODORO",0]
["RAGU CALABRESE",0]
["FUNGHI",0]
["CASQUINHA DE CARANGUEJO",90]
["CALDO DE SURURU",0]
["CALDO DE PIRANHA ",0]
["CROQUETE DE VATAPA",0]
["MOQUECA DE NAMORADO ",0]
["CARNE ASSADA COM  GNOCCH",110]
["CARNE SECA COM ABOBORA",0]
["GALINHADA",0]
["DOCE DE ABOBORA",0]
["COCADA",0]
[null,0]
[]
["ARARUAMA"]
["preencher"]
["TIA CLARINHA"]
["RUA GENERAL GARZON 100/604","preencher"]
["CASQUINHA DE CARANGUEJO",1]
["CARNE ASSADA COM  GNOCCH",1]
[]
[]
["AREAL"]
["preencher"]
["EF"]
["FEFE","preencher"]
["RATATOUILLE",50]
["BATATAS CORADAS",0]
["PATE DE FIGADO 250G",0]
["BOLINHO DE BACALHAU",0]
["CROQUETE DE JOELHO",0]
["CROQUETE DE CORDEIRO",0]
["CROQUETE DE PATO",0]
["BERINJELA PARMIGIANA",0]
["FRANGO PARMIGIANA",0]
["LASAGNA BOLOGNESES",0]
["GNOCCHI DE BATATA",0]
["ROSBIFE MOSTARDA",0]
["PESTO",0]
["POMODORO",45]
["RAGU CALABRESE",0]
["FUNGHI",0]
["CASQUINHA DE CARANGUEJO",0]
["CALDO DE SURURU",0]
["CALDO DE PIRANHA ",0]
["CROQUETE DE VATAPA",0]
["MOQUECA DE NAMORADO ",0]
["CARNE ASSADA COM  GNOCCH",110]
["CARNE SECA COM ABOBORA",0]
["GALINHADA",100]
["DOCE DE ABOBORA",0]
["COCADA",0]
[null,0]
[]
["ARMAÇÃO DOS BÚZIOS"]
["preencher"]
["NOME TESTE"]
["BUSCA NO LOCAL","preencher"]
["RATATOUILLE",1]
["POMODORO",1]
["CARNE ASSADA COM  GNOCCH",1]
["GALINHADA",1]
[]
[]
["ARRAIAL DO CABO"]
["preencher"]
["NOME TESTE 2"]
["ENDEREÇO TESTE","preencher"]
["RATATOUILLE",0]
["BATATAS CORADAS",0]
["PATE DE FIGADO 250G",0]
["BOLINHO DE BACALHAU",0]
["CROQUETE DE JOELHO",0]
["CROQUETE DE CORDEIRO",0]
["CROQUETE DE PATO",0]
["BERINJELA PARMIGIANA",0]
["FRANGO PARMIGIANA",100]
["LASAGNA BOLOGNESES",110]
["GNOCCHI DE BATATA",0]
["ROSBIFE MOSTARDA",0]
["PESTO",0]
["POMODORO",0]
["RAGU CALABRESE",0]
["FUNGHI",0]
["CASQUINHA DE CARANGUEJO",0]
["CALDO DE SURURU",0]
["CALDO DE PIRANHA ",0]
["CROQUETE DE VATAPA",0]
["MOQUECA DE NAMORADO ",0]
["CARNE ASSADA COM  GNOCCH",0]
["CARNE SECA COM ABOBORA",0]
["GALINHADA",0]
["DOCE DE ABOBORA",30]
["COCADA",0]
[null,0]
[]
["BARRA DO PIRAÍ"]
["preencher"]
["ISABELA SA FREIRE"]
[" RUA PROFESSOR STROELLER 320, QUARTEIRÃO BRASILEIRO","preencher"]
["FRANGO PARMIGIANA",1]
["LASAGNA BOLOGNESES",1]
["DOCE DE ABOBORA",1]
[]
[]
["BARRA MANSA"]
["preencher"]
["FULANO"]
["ENDEREÇO X","preencher"]
["RATATOUILLE",50]
["BATATAS CORADAS",0]
["PATE DE FIGADO 250G",0]
["BOLINHO DE BACALHAU",0]
["CROQUETE DE JOELHO",0]
["CROQUETE DE CORDEIRO",0]
["CROQUETE DE PATO",0]
["BERINJELA PARMIGIANA",0]
["FRANGO PARMIGIANA",0]
["LASAGNA BOLOGNESES",0]
["GNOCCHI DE BATATA",0]
["ROSBIFE MOSTARDA",140]
["PESTO",0]
["POMODORO",0]
["RAGU CALABRESE",0]
["FUNGHI",0]
["CASQUINHA DE CARANGUEJO",0]
["CALDO DE SURURU",0]
["CALDO DE PIRANHA ",0]
["CROQUETE DE VATAPA",0]
["MOQUECA DE NAMORADO ",0]
["CARNE ASSADA COM  GNOCCH",0]
["CARNE SECA COM ABOBORA",0]
["GALINHADA",0]
["DOCE DE ABOBORA",0]
["COCADA",0]
[null,0]
[]
["BELFORD ROXO"]
["preencher"]
["MARA LUISA VANIA"]
["AV. JORNALISTA TIM LOPES 255 BLOCO 8 APTO 312","preencher"]
["RATATOUILLE",1]
["ROSBIFE MOSTARDA",1]
[]
[]
["BOM JARDIM"]
["preencher"]
["CITRANO"]
["ENDEREÇO Y","preencher"]
["RATATOUILLE",0]
["BATATAS CORADAS",0]
["PATE DE FIGADO 250G",0]
["BOLINHO DE BACALHAU",50]
["CROQUETE DE JOELHO",0]
["CROQUETE DE CORDEIRO",0]
["CROQUETE DE PATO",0]
["BERINJELA PARMIGIANA",0]
["FRANGO PARMIGIANA",0]
["LASAGNA BOLOGNESES",0]
["GNOCCHI DE BATATA",0]
["ROSBIFE MOSTARDA",0]
["PESTO",0]
["POMODORO",0]
["RAGU CALABRESE",0]
["FUNGHI",70]
["CASQUINHA DE CARANGUEJO",0]
["CALDO DE SURURU",0]
["CALDO DE PIRANHA ",0]
["CROQUETE DE VATAPA",0]
["MOQUECA DE NAMORADO ",0]
["CARNE ASSADA COM  GNOCCH",220]
["CARNE SECA COM ABOBORA",0]
["GALINHADA",0]
["DOCE DE ABOBORA",0]
["COCADA",38]
[null,0]
[]
["BOM JESUS DO ITABAPOANA"]
["preencher"]
["CLAUDIA GUERRA"]
["AV HENRIQUE DODSWORTH 64/206 BL1","preencher"]
["BOLINHO DE BACALHAU",1]
["FUNGHI",1]
["CARNE ASSADA COM  GNOCCH",2]
["COCADA",1]
[]
[]
["CABO FRIO"]
["preencher"]
["BELTRANO"]
["ENDEREÇO Z","preencher"]
["RATATOUILLE",0]
["BATATAS CORADAS",0]
["PATE DE FIGADO 250G",0]
["BOLINHO DE BACALHAU",0]
["CROQUETE DE JOELHO",0]
["CROQUETE DE CORDEIRO",0]
["CROQUETE DE PATO",0]
["BERINJELA PARMIGIANA",0]
["FRANGO PARMIGIANA",0]
["LASAGNA BOLOGNESES",0]
["GNOCCHI DE BATATA",0]
["ROSBIFE MOSTARDA",0]
["PESTO",0]
["POMODORO",0]
["RAGU CALABRESE",0]
["FUNGHI",0]
["CASQUINHA DE CARANGUEJO",0]
["CALDO DE SURURU",0]
["CALDO DE PIRANHA ",0]
["CROQUETE DE VATAPA",0]
["MOQUECA DE NAMORADO ",140]
["CARNE ASSADA COM  GNOCCH",0]
["CARNE SECA COM ABOBORA",0]
["GALINHADA",0]
["DOCE DE ABOBORA",0]
["COCADA",0]
[null,0]
[]
["CACHOEIRAS DE MACACU"]
["preencher"]
["RAQUEL CARIUS"]
["PRAÇA RUI BARBOSA, 250 APTO:402","preencher"]
["MOQUECA DE NAMORADO ",1]

{"sheet":"EtiquetaRascunho","index":4,"n_rows":0,"n_cols":0,"rows_kept":0,"cut":false,"hidden":false,"merged":[]}